[Event "Titled Tuesday Blitz January 31 Late 2023"]
[White "Tarnowska, Aleksandra"]
[Black "Rose, Felix"]
[WhiteFideId "1180967"]
[BlackFideId "5105722"]
[WhiteElo "1835"]
[BlackElo "2091"]
[Result "1/2-1/2"]
[Round "08"]
[TimeControl "180+2"]
[Date "2023.01.31"]
[WhiteClock "0:00:03"]
[BlackClock "0:00:08"]

1. e4 {[%clk 0:03:00]}  e5 {[%clk 0:02:59]} 2. Nf3 {[%clk 0:03:00]}  Nc6 {[%clk 0:03:00]} 3. Bb5 {[%clk 0:03:01]}  a6 {[%clk 0:03:00]} 4. Ba4 {[%clk 0:03:01]}  Nf6 {[%clk 0:03:00]} 5. O-O {[%clk 0:03:01]}  Be7 {[%clk 0:03:00]} 6. Re1 {[%clk 0:03:01]}  b5 {[%clk 0:03:01]} 7. Bb3 {[%clk 0:03:01]}  d6 {[%clk 0:03:02]} 8. h3 {[%clk 0:03:01]}  Na5 {[%clk 0:03:01]} 9. c3 {[%clk 0:02:58]}  Nxb3 {[%clk 0:03:01]} 10. axb3 {[%clk 0:02:57]}  Bb7 {[%clk 0:03:01]} 11. d3 {[%clk 0:02:37]}  h6 {[%clk 0:03:00]} 12. Nbd2 {[%clk 0:02:36]}  O-O {[%clk 0:03:00]} 13. Nf1 {[%clk 0:02:37]}  Re8 {[%clk 0:02:59]} 14. Ng3 {[%clk 0:02:38]}  Bf8 {[%clk 0:02:58]} 15. Nf5 {[%clk 0:02:37]}  d5 {[%clk 0:02:58]} 16. exd5 {[%clk 0:02:18]}  Qxd5 {[%clk 0:02:57]} 17. Qc2 {[%clk 0:01:53]}  Rad8 {[%clk 0:02:54]} 18. d4 {[%clk 0:01:23]}  e4 {[%clk 0:02:48]} 19. Ne3 {[%clk 0:01:24]}  Qh5 {[%clk 0:02:21]} 20. Nh2 {[%clk 0:01:15]}  Bd6 {[%clk 0:02:06]} 21. Qe2 {[%clk 0:01:08]}  Qxe2 {[%clk 0:01:50]} 22. Rxe2 {[%clk 0:01:09]}  h5 {[%clk 0:01:37]} 23. Nf5 {[%clk 0:01:04]}  Bf8 {[%clk 0:01:36]} 24. Bg5 {[%clk 0:00:56]}  Rd5 {[%clk 0:01:35]} 25. Bxf6 {[%clk 0:00:51]}  Rxf5 {[%clk 0:01:26]} 26. Be5 {[%clk 0:00:46]}  c5 {[%clk 0:01:05]} 27. Nf1 {[%clk 0:00:33]}  Rg5 {[%clk 0:00:51]} 28. Bf4 {[%clk 0:00:29]}  Rg6 {[%clk 0:00:48]} 29. Ne3 {[%clk 0:00:23]}  cxd4 {[%clk 0:00:44]} 30. cxd4 {[%clk 0:00:24]}  Rd8 {[%clk 0:00:43]} 31. Rd1 {[%clk 0:00:21]}  Bb4 {[%clk 0:00:33]} 32. Rc2 {[%clk 0:00:19]}  Rf6 {[%clk 0:00:30]} 33. Bg5 {[%clk 0:00:17]}  Rfd6 {[%clk 0:00:22]} 34. Bxd8 {[%clk 0:00:17]}  Rxd8 {[%clk 0:00:23]} 35. Rc7 {[%clk 0:00:17]}  Bc8 {[%clk 0:00:19]} 36. d5 {[%clk 0:00:16]}  f5 {[%clk 0:00:18]} 37. Rdc1 {[%clk 0:00:14]}  Bd7 {[%clk 0:00:18]} 38. Ra7 {[%clk 0:00:11]}  f4 {[%clk 0:00:18]} 39. Nd1 {[%clk 0:00:07]}  a5 {[%clk 0:00:18]} 40. Rcc7 {[%clk 0:00:07]}  e3 {[%clk 0:00:11]} 41. fxe3 {[%clk 0:00:02]}  fxe3 {[%clk 0:00:11]} 42. Nxe3 {[%clk 0:00:02]}  Re8 {[%clk 0:00:11]} 43. Rxd7 {[%clk 0:00:02]}  Rxe3 {[%clk 0:00:11]} 44. Rxg7+ {[%clk 0:00:03]}  Kh8 {[%clk 0:00:11]} 45. Rh7+ {[%clk 0:00:03]}  Kg8 {[%clk 0:00:12]} 46. Rhg7+ {[%clk 0:00:03]}  Kh8 {[%clk 0:00:12]} 47. Rgf7 {[%clk 0:00:04]}  Kg8 {[%clk 0:00:08]} 48. Rg7+ {[%clk 0:00:03]} 1/2-1/2


[Site "https://www.chess.com"]

[Event "Titled Tuesday Blitz January 31 Late 2023"]
[White "Prohorov, Olexandr"]
[Black "Vaglio Munoz, Jaime"]
[WhiteFideId "14105578"]
[BlackFideId "6500145"]
[WhiteElo "2086"]
[BlackElo "2174"]
[Result "1/2-1/2"]
[Round "08"]
[TimeControl "180+2"]
[Date "2023.01.31"]
[WhiteClock "0:02:09"]
[BlackClock "0:02:01"]

1. e4 {[%clk 0:03:00]}  c5 {[%clk 0:02:59]} 2. c3 {[%clk 0:03:01]}  d5 {[%clk 0:02:57]} 3. exd5 {[%clk 0:03:00]}  Qd6 {[%clk 0:02:56]} 4. d4 {[%clk 0:03:01]}  Nf6 {[%clk 0:02:50]} 5. dxc5 {[%clk 0:02:58]}  Qxc5 {[%clk 0:02:48]} 6. c4 {[%clk 0:02:57]}  b5 {[%clk 0:02:48]} 7. Be3 {[%clk 0:02:55]}  Qb4+ {[%clk 0:02:42]} 8. Qd2 {[%clk 0:02:55]}  Na6 {[%clk 0:02:36]} 9. a3 {[%clk 0:02:52]}  Qxd2+ {[%clk 0:02:24]} 10. Nxd2 {[%clk 0:02:53]}  bxc4 {[%clk 0:02:24]} 11. Bxc4 {[%clk 0:02:52]}  Bb7 {[%clk 0:02:23]} 12. d6 {[%clk 0:02:28]}  exd6 {[%clk 0:02:22]} 13. Ngf3 {[%clk 0:02:28]}  Be7 {[%clk 0:02:20]} 14. O-O {[%clk 0:02:28]}  O-O {[%clk 0:02:20]} 15. Rfe1 {[%clk 0:02:29]}  d5 {[%clk 0:02:13]} 16. Ba2 {[%clk 0:02:21]}  Bc5 {[%clk 0:02:06]} 17. b4 {[%clk 0:02:13]}  Bxe3 {[%clk 0:02:05]} 18. Rxe3 {[%clk 0:02:14]}  Rac8 {[%clk 0:02:01]} 19. Rae1 {[%clk 0:02:09]} 1/2-1/2


[Site "https://www.chess.com"]

[Event "Titled Tuesday Blitz January 31 Late 2023"]
[White "Yu, Yangyi"]
[Black "Dubov, Daniil"]
[WhiteFideId "8603820"]
[BlackFideId "24126055"]
[WhiteElo "2729"]
[BlackElo "2708"]
[Result "1/2-1/2"]
[Round "09"]
[TimeControl "180+2"]
[Date "2023.01.31"]
[WhiteClock "0:02:32"]
[BlackClock "0:02:42"]

1. Nf3 {[%clk 0:03:00]}  d5 {[%clk 0:03:00]} 2. g3 {[%clk 0:03:00]}  g6 {[%clk 0:02:58]} 3. Bg2 {[%clk 0:03:00]}  Bg7 {[%clk 0:02:58]} 4. d4 {[%clk 0:02:58]}  Nf6 {[%clk 0:02:59]} 5. c4 {[%clk 0:02:58]}  c6 {[%clk 0:02:58]} 6. Qa4 {[%clk 0:02:57]}  O-O {[%clk 0:02:57]} 7. O-O {[%clk 0:02:57]}  dxc4 {[%clk 0:02:54]} 8. Qxc4 {[%clk 0:02:57]}  b5 {[%clk 0:02:55]} 9. Qc3 {[%clk 0:02:56]}  Bf5 {[%clk 0:02:51]} 10. Nbd2 {[%clk 0:02:38]}  a5 {[%clk 0:02:46]} 11. Re1 {[%clk 0:02:32]}  Ne4 {[%clk 0:02:42]} 1/2-1/2


[Site "https://www.chess.com"]

[Event "Titled Tuesday Blitz January 31 Late 2023"]
[White "Deac, Bogdan-Daniel"]
[Black "Andreikin, Dmitry"]
[WhiteFideId "1226380"]
[BlackFideId "4158814"]
[WhiteElo "2700"]
[BlackElo "2729"]
[Result "1-0"]
[Round "09"]
[TimeControl "180+2"]
[Date "2023.01.31"]
[WhiteClock "0:00:04"]
[BlackClock "0:00:17"]

1. d4 {[%clk 0:03:00]}  d5 {[%clk 0:02:59]} 2. c4 {[%clk 0:03:00]}  e6 {[%clk 0:03:00]} 3. Nc3 {[%clk 0:03:00]}  a6 {[%clk 0:03:00]} 4. cxd5 {[%clk 0:03:00]}  exd5 {[%clk 0:03:01]} 5. a3 {[%clk 0:03:01]}  h6 {[%clk 0:02:58]} 6. Bf4 {[%clk 0:02:53]}  Nf6 {[%clk 0:02:58]} 7. e3 {[%clk 0:02:52]}  c5 {[%clk 0:02:58]} 8. Nge2 {[%clk 0:02:43]}  Nc6 {[%clk 0:02:58]} 9. g3 {[%clk 0:02:29]}  Bg4 {[%clk 0:02:41]} 10. Bg2 {[%clk 0:02:22]}  cxd4 {[%clk 0:02:41]} 11. exd4 {[%clk 0:02:22]}  Bd6 {[%clk 0:02:38]} 12. Qd2 {[%clk 0:02:16]}  O-O {[%clk 0:02:37]} 13. O-O {[%clk 0:02:10]}  Bxe2 {[%clk 0:02:32]} 14. Nxe2 {[%clk 0:02:07]}  Re8 {[%clk 0:02:32]} 15. Qd3 {[%clk 0:02:00]}  Re7 {[%clk 0:02:16]} 16. Be3 {[%clk 0:01:56]}  Qd7 {[%clk 0:01:58]} 17. Nc3 {[%clk 0:01:56]}  Bc7 {[%clk 0:01:51]} 18. Na4 {[%clk 0:01:55]}  Rae8 {[%clk 0:01:50]} 19. Nc5 {[%clk 0:01:53]}  Qc8 {[%clk 0:01:50]} 20. Rac1 {[%clk 0:01:53]}  Bd6 {[%clk 0:01:44]} 21. b4 {[%clk 0:01:27]}  Bxc5 {[%clk 0:01:42]} 22. dxc5 {[%clk 0:01:22]}  Ne5 {[%clk 0:01:40]} 23. Qd1 {[%clk 0:01:14]}  Qf5 {[%clk 0:01:37]} 24. Bd4 {[%clk 0:01:11]}  Ne4 {[%clk 0:01:24]} 25. Bxe5 {[%clk 0:01:04]}  Rxe5 {[%clk 0:01:22]} 26. Qd4 {[%clk 0:00:51]}  h5 {[%clk 0:01:17]} 27. h4 {[%clk 0:00:35]}  g5 {[%clk 0:00:56]} 28. hxg5 {[%clk 0:00:30]}  h4 {[%clk 0:00:47]} 29. gxh4 {[%clk 0:00:21]}  Qg4 {[%clk 0:00:47]} 30. f3 {[%clk 0:00:17]}  Qxh4 {[%clk 0:00:43]} 31. fxe4 {[%clk 0:00:17]}  Rxg5 {[%clk 0:00:43]} 32. Qf6 {[%clk 0:00:12]}  Re7 {[%clk 0:00:17]} 33. Rf5 {[%clk 0:00:08]}  Rxg2+ {[%clk 0:00:17]} 34. Kxg2 {[%clk 0:00:08]}  Qg4+ {[%clk 0:00:17]} 35. Kh2 {[%clk 0:00:06]}  Qe2+ {[%clk 0:00:16]} 36. Rf2 {[%clk 0:00:06]}  Qh5+ {[%clk 0:00:16]} 37. Kg1 {[%clk 0:00:05]}  Rxe4 {[%clk 0:00:16]} 38. Rg2+ {[%clk 0:00:05]}  Kf8 {[%clk 0:00:15]} 39. Qd8+ {[%clk 0:00:04]}  Re8 {[%clk 0:00:16]} 40. Qd6+ {[%clk 0:00:05]}  Re7 {[%clk 0:00:16]} 41. Re1 {[%clk 0:00:04]}  Qh4 {[%clk 0:00:17]} 42. Qxe7+ {[%clk 0:00:04]} 1-0


[Site "https://www.chess.com"]

[Event "Titled Tuesday Blitz January 31 Late 2023"]
[White "Bok, Benjamin"]
[Black "Dardha, Daniel"]
[WhiteFideId "1017063"]
[BlackFideId "240990"]
[WhiteElo "2607"]
[BlackElo "2631"]
[Result "1-0"]
[Round "09"]
[TimeControl "180+2"]
[Date "2023.01.31"]
[WhiteClock "0:00:06"]
[BlackClock "0:00:02"]

1. d4 {[%clk 0:03:00]}  Nf6 {[%clk 0:02:54]} 2. c4 {[%clk 0:03:01]}  e6 {[%clk 0:02:53]} 3. Nc3 {[%clk 0:03:01]}  d5 {[%clk 0:02:54]} 4. cxd5 {[%clk 0:03:01]}  Nxd5 {[%clk 0:02:54]} 5. e4 {[%clk 0:03:00]}  Nxc3 {[%clk 0:02:54]} 6. bxc3 {[%clk 0:03:01]}  c5 {[%clk 0:02:54]} 7. Rb1 {[%clk 0:03:01]}  Be7 {[%clk 0:02:54]} 8. Nf3 {[%clk 0:03:00]}  O-O {[%clk 0:02:54]} 9. h4 {[%clk 0:02:58]}  b6 {[%clk 0:02:54]} 10. h5 {[%clk 0:02:57]}  h6 {[%clk 0:02:52]} 11. Rh3 {[%clk 0:02:51]}  cxd4 {[%clk 0:02:51]} 12. cxd4 {[%clk 0:02:50]}  Bb7 {[%clk 0:02:51]} 13. Bd3 {[%clk 0:02:47]}  Nc6 {[%clk 0:02:39]} 14. Rg3 {[%clk 0:02:37]}  Kh8 {[%clk 0:02:37]} 15. Be2 {[%clk 0:02:16]}  f5 {[%clk 0:02:00]} 16. d5 {[%clk 0:01:53]}  exd5 {[%clk 0:01:55]} 17. exd5 {[%clk 0:01:54]}  Nb4 {[%clk 0:01:12]} 18. Bb2 {[%clk 0:01:29]}  Rg8 {[%clk 0:01:12]} 19. Ne5 {[%clk 0:00:37]}  Bxd5 {[%clk 0:01:06]} 20. Ng6+ {[%clk 0:00:18]}  Kh7 {[%clk 0:01:06]} 21. Nxe7 {[%clk 0:00:18]}  Qxe7 {[%clk 0:01:06]} 22. Ba3 {[%clk 0:00:18]}  Rae8 {[%clk 0:00:27]} 23. Rxb4 {[%clk 0:00:16]}  Qc5 {[%clk 0:00:09]} 24. Rd4 {[%clk 0:00:12]}  Qa5+ {[%clk 0:00:07]} 25. Bb4 {[%clk 0:00:13]}  Qxa2 {[%clk 0:00:07]} 26. Kf1 {[%clk 0:00:10]}  f4 {[%clk 0:00:05]} 27. Ra3 {[%clk 0:00:08]}  Qb2 {[%clk 0:00:03]} 28. Rxd5 {[%clk 0:00:06]}  Qxb4 {[%clk 0:00:03]} 29. Rxa7 {[%clk 0:00:06]}  Kh8 {[%clk 0:00:02]} 30. Rdd7 {[%clk 0:00:06]}  Rc8 {[%clk 0:00:02]} 31. Kg1 {[%clk 0:00:06]}  Qb2 {[%clk 0:00:02]} 32. Kh2 {[%clk 0:00:06]}  Qe5 {[%clk 0:00:02]} 33. Bf3 {[%clk 0:00:05]}  Rc5 {[%clk 0:00:01]} 34. Qd3 {[%clk 0:00:05]}  Qf6 {[%clk 0:00:02]} 35. Qg6 {[%clk 0:00:05]}  Qh4+ {[%clk 0:00:02]} 36. Kg1 {[%clk 0:00:05]}  Rc1+ {[%clk 0:00:02]} 37. Rd1 {[%clk 0:00:05]}  Rxd1+ {[%clk 0:00:02]} 38. Bxd1 {[%clk 0:00:06]}  Qd8 {[%clk 0:00:02]} 39. Bc2 {[%clk 0:00:06]} 1-0


[Site "https://www.chess.com"]

[Event "Titled Tuesday Blitz January 31 Late 2023"]
[White "Dominguez Perez, Leinier"]
[Black "Yoo, Christopher Woojin"]
[WhiteFideId "3503240"]
[BlackFideId "30909694"]
[WhiteElo "2739"]
[BlackElo "2607"]
[Result "1/2-1/2"]
[Round "09"]
[TimeControl "180+2"]
[Date "2023.01.31"]
[WhiteClock "0:00:02"]
[BlackClock "0:00:05"]

1. d4 {[%clk 0:03:00]}  Nf6 {[%clk 0:02:59]} 2. Nf3 {[%clk 0:03:01]}  d5 {[%clk 0:02:58]} 3. e3 {[%clk 0:03:01]}  Bf5 {[%clk 0:02:55]} 4. Nbd2 {[%clk 0:03:00]}  e6 {[%clk 0:02:56]} 5. c4 {[%clk 0:02:55]}  Nbd7 {[%clk 0:02:55]} 6. Nh4 {[%clk 0:02:51]}  Be4 {[%clk 0:02:52]} 7. Be2 {[%clk 0:02:50]}  dxc4 {[%clk 0:02:24]} 8. O-O {[%clk 0:02:34]}  Bd5 {[%clk 0:02:14]} 9. Nxc4 {[%clk 0:02:18]}  c5 {[%clk 0:02:14]} 10. Nf3 {[%clk 0:02:16]}  Be7 {[%clk 0:02:02]} 11. b3 {[%clk 0:02:16]}  cxd4 {[%clk 0:01:54]} 12. Nxd4 {[%clk 0:02:16]}  O-O {[%clk 0:01:53]} 13. Bb2 {[%clk 0:02:15]}  a6 {[%clk 0:01:38]} 14. Rc1 {[%clk 0:02:05]}  b5 {[%clk 0:01:35]} 15. Nd2 {[%clk 0:02:05]}  Qb6 {[%clk 0:01:22]} 16. Bf3 {[%clk 0:01:56]}  Rac8 {[%clk 0:01:20]} 17. Qe2 {[%clk 0:01:54]}  Qa5 {[%clk 0:01:14]} 18. a3 {[%clk 0:01:26]}  Bxa3 {[%clk 0:00:45]} 19. Ra1 {[%clk 0:01:25]}  b4 {[%clk 0:00:44]} 20. Bxd5 {[%clk 0:01:15]}  Qxd5 {[%clk 0:00:38]} 21. Bxa3 {[%clk 0:01:14]}  bxa3 {[%clk 0:00:39]} 22. Rxa3 {[%clk 0:01:14]}  e5 {[%clk 0:00:37]} 23. N4f3 {[%clk 0:01:06]}  e4 {[%clk 0:00:26]} 24. Nd4 {[%clk 0:01:06]}  Nc5 {[%clk 0:00:27]} 25. b4 {[%clk 0:01:01]}  Nd3 {[%clk 0:00:27]} 26. Nxe4 {[%clk 0:01:01]}  Nxe4 {[%clk 0:00:24]} 27. Qxd3 {[%clk 0:01:00]}  Rb8 {[%clk 0:00:12]} 28. Ra5 {[%clk 0:01:00]}  Qb7 {[%clk 0:00:12]} 29. Rxa6 {[%clk 0:00:51]}  Rfc8 {[%clk 0:00:12]} 30. Ra3 {[%clk 0:00:41]}  Qxb4 {[%clk 0:00:09]} 31. Rb3 {[%clk 0:00:41]}  Nc5 {[%clk 0:00:09]} 32. Rxb4 {[%clk 0:00:41]}  Nxd3 {[%clk 0:00:10]} 33. Rxb8 {[%clk 0:00:41]}  Rxb8 {[%clk 0:00:11]} 34. Rd1 {[%clk 0:00:27]}  Ne5 {[%clk 0:00:11]} 35. h3 {[%clk 0:00:25]}  g6 {[%clk 0:00:11]} 36. g4 {[%clk 0:00:24]}  Rb2 {[%clk 0:00:10]} 37. Kg2 {[%clk 0:00:22]}  Kg7 {[%clk 0:00:10]} 38. Kg3 {[%clk 0:00:22]}  Nc4 {[%clk 0:00:10]} 39. Nf3 {[%clk 0:00:17]}  Rb6 {[%clk 0:00:05]} 40. Rd4 {[%clk 0:00:16]}  Rc6 {[%clk 0:00:04]} 41. h4 {[%clk 0:00:17]}  h6 {[%clk 0:00:04]} 42. g5 {[%clk 0:00:17]}  hxg5 {[%clk 0:00:04]} 43. hxg5 {[%clk 0:00:18]}  Nd6 {[%clk 0:00:04]} 44. Nh4 {[%clk 0:00:16]}  Nb5 {[%clk 0:00:03]} 45. Rd3 {[%clk 0:00:14]}  Nd6 {[%clk 0:00:01]} 46. f3 {[%clk 0:00:14]}  Nc4 {[%clk 0:00:02]} 47. f4 {[%clk 0:00:12]}  Ra6 {[%clk 0:00:02]} 48. Nf3 {[%clk 0:00:09]}  Re6 {[%clk 0:00:02]} 49. Kf2 {[%clk 0:00:09]}  Nd6 {[%clk 0:00:03]} 50. Ne5 {[%clk 0:00:09]}  Ne4+ {[%clk 0:00:03]} 51. Ke2 {[%clk 0:00:08]}  Nxg5 {[%clk 0:00:03]} 52. Rd7 {[%clk 0:00:08]}  Re8 {[%clk 0:00:02]} 53. Ra7 {[%clk 0:00:05]}  Kg8 {[%clk 0:00:03]} 54. Ng4 {[%clk 0:00:02]}  Ne4 {[%clk 0:00:02]} 55. Nh6+ {[%clk 0:00:02]}  Kg7 {[%clk 0:00:03]} 56. Nxf7 {[%clk 0:00:02]}  Kf6 {[%clk 0:00:04]} 57. Nh6 {[%clk 0:00:01]}  g5 {[%clk 0:00:03]} 58. Ng4+ {[%clk 0:00:02]}  Kf5 {[%clk 0:00:03]} 59. Nh6+ {[%clk 0:00:02]}  Kg6 {[%clk 0:00:04]} 60. Ra6+ {[%clk 0:00:03]}  Kh5 {[%clk 0:00:02]} 61. Nf5 {[%clk 0:00:03]}  Rf8 {[%clk 0:00:02]} 62. Kf3 {[%clk 0:00:02]}  Nd2+ {[%clk 0:00:02]} 63. Ke2 {[%clk 0:00:02]}  Rxf5 {[%clk 0:00:02]} 64. Kxd2 {[%clk 0:00:02]}  gxf4 {[%clk 0:00:03]} 65. exf4 {[%clk 0:00:03]}  Rxf4 {[%clk 0:00:04]} 66. Ra5+ {[%clk 0:00:03]}  Kg4 {[%clk 0:00:04]} 67. Ra3 {[%clk 0:00:03]}  Rf3 {[%clk 0:00:04]} 68. Rxf3 {[%clk 0:00:02]}  Kxf3 {[%clk 0:00:05]} 1/2-1/2


[Site "https://www.chess.com"]

[Event "Titled Tuesday Blitz January 31 Late 2023"]
[White "Zhigalko, Sergei"]
[Black "Lenderman, Aleksandr"]
[WhiteFideId "13502956"]
[BlackFideId "2021285"]
[WhiteElo "2572"]
[BlackElo "2572"]
[Result "0-1"]
[Round "09"]
[TimeControl "180+2"]
[Date "2023.01.31"]
[WhiteClock "0:00:05"]
[BlackClock "0:00:44"]

1. e4 {[%clk 0:03:00]}  c6 {[%clk 0:02:59]} 2. d4 {[%clk 0:03:01]}  d5 {[%clk 0:02:59]} 3. e5 {[%clk 0:03:01]}  Bf5 {[%clk 0:02:58]} 4. Nf3 {[%clk 0:03:02]}  e6 {[%clk 0:02:58]} 5. Be2 {[%clk 0:03:03]}  c5 {[%clk 0:02:58]} 6. Be3 {[%clk 0:03:02]}  cxd4 {[%clk 0:02:55]} 7. Nxd4 {[%clk 0:03:02]}  Ne7 {[%clk 0:02:56]} 8. Nd2 {[%clk 0:03:01]}  Nbc6 {[%clk 0:02:54]} 9. N2f3 {[%clk 0:03:01]}  a6 {[%clk 0:02:52]} 10. O-O {[%clk 0:03:01]}  Be4 {[%clk 0:02:51]} 11. c3 {[%clk 0:02:55]}  Qc7 {[%clk 0:02:50]} 12. Qa4 {[%clk 0:02:40]}  Rd8 {[%clk 0:02:46]} 13. Rfe1 {[%clk 0:02:09]}  Bxf3 {[%clk 0:02:37]} 14. Nxf3 {[%clk 0:01:58]}  Nf5 {[%clk 0:02:37]} 15. Bf4 {[%clk 0:01:56]}  Bc5 {[%clk 0:02:37]} 16. Bd3 {[%clk 0:01:56]}  Ne7 {[%clk 0:02:31]} 17. Rad1 {[%clk 0:01:45]}  Ng6 {[%clk 0:02:31]} 18. Bg3 {[%clk 0:01:45]}  O-O {[%clk 0:02:24]} 19. Qc2 {[%clk 0:01:43]}  Rfe8 {[%clk 0:02:06]} 20. h4 {[%clk 0:01:31]}  Nf8 {[%clk 0:02:02]} 21. h5 {[%clk 0:01:27]}  h6 {[%clk 0:01:39]} 22. Qa4 {[%clk 0:01:23]}  Nd7 {[%clk 0:01:37]} 23. Bb1 {[%clk 0:01:16]}  Nf8 {[%clk 0:01:24]} 24. Qg4 {[%clk 0:01:13]}  Qb6 {[%clk 0:01:18]} 25. b4 {[%clk 0:01:06]}  Be7 {[%clk 0:01:17]} 26. Bf4 {[%clk 0:01:07]}  Kh8 {[%clk 0:01:16]} 27. Rd3 {[%clk 0:00:32]}  f5 {[%clk 0:01:11]} 28. exf6 {[%clk 0:00:24]}  Bxf6 {[%clk 0:01:11]} 29. Be3 {[%clk 0:00:24]}  Qc7 {[%clk 0:01:08]} 30. Bc5 {[%clk 0:00:23]}  Be7 {[%clk 0:00:57]} 31. Bd4 {[%clk 0:00:15]}  Nxd4 {[%clk 0:00:51]} 32. Nxd4 {[%clk 0:00:16]}  e5 {[%clk 0:00:51]} 33. Nf5 {[%clk 0:00:09]}  Bg5 {[%clk 0:00:52]} 34. Red1 {[%clk 0:00:08]}  e4 {[%clk 0:00:47]} 35. Rxd5 {[%clk 0:00:07]}  Rxd5 {[%clk 0:00:48]} 36. Rxd5 {[%clk 0:00:07]}  Qxc3 {[%clk 0:00:49]} 37. Qd1 {[%clk 0:00:06]}  e3 {[%clk 0:00:47]} 38. fxe3 {[%clk 0:00:06]}  Bxe3+ {[%clk 0:00:48]} 39. Nxe3 {[%clk 0:00:05]}  Qxe3+ {[%clk 0:00:48]} 40. Kh1 {[%clk 0:00:05]}  Qf2 {[%clk 0:00:44]} 0-1


[Site "https://www.chess.com"]

[Event "Titled Tuesday Blitz January 31 Late 2023"]
[White "So, Wesley"]
[Black "Hansen, Eric"]
[WhiteFideId "5202213"]
[BlackFideId "2606771"]
[WhiteElo "2760"]
[BlackElo "2609"]
[Result "1-0"]
[Round "09"]
[TimeControl "180+2"]
[Date "2023.01.31"]
[WhiteClock "0:00:28"]
[BlackClock "0:00:01"]

1. e4 {[%clk 0:02:54]}  e5 {[%clk 0:02:56]} 2. Nf3 {[%clk 0:02:54]}  Nc6 {[%clk 0:02:56]} 3. Bc4 {[%clk 0:02:53]}  Bc5 {[%clk 0:02:49]} 4. c3 {[%clk 0:02:53]}  Nf6 {[%clk 0:02:50]} 5. d4 {[%clk 0:02:54]}  exd4 {[%clk 0:02:51]} 6. e5 {[%clk 0:02:55]}  d5 {[%clk 0:02:51]} 7. Be2 {[%clk 0:02:54]}  Ne4 {[%clk 0:02:26]} 8. cxd4 {[%clk 0:02:55]}  Bb4+ {[%clk 0:02:26]} 9. Bd2 {[%clk 0:02:52]}  Nxd2 {[%clk 0:02:23]} 10. Nbxd2 {[%clk 0:02:53]}  O-O {[%clk 0:02:23]} 11. O-O {[%clk 0:02:52]}  Bf5 {[%clk 0:02:07]} 12. a3 {[%clk 0:02:46]}  Ba5 {[%clk 0:02:03]} 13. Rc1 {[%clk 0:02:45]}  Bb6 {[%clk 0:02:03]} 14. Nb3 {[%clk 0:02:43]}  Qe7 {[%clk 0:01:59]} 15. h3 {[%clk 0:02:24]}  f6 {[%clk 0:01:57]} 16. Bb5 {[%clk 0:02:21]}  Nd8 {[%clk 0:01:45]} 17. Bd3 {[%clk 0:02:16]}  Bxd3 {[%clk 0:01:37]} 18. Qxd3 {[%clk 0:02:17]}  fxe5 {[%clk 0:01:37]} 19. Nxe5 {[%clk 0:02:16]}  Ne6 {[%clk 0:01:35]} 20. Rce1 {[%clk 0:02:10]}  Qd6 {[%clk 0:01:32]} 21. g3 {[%clk 0:02:05]}  Rae8 {[%clk 0:01:25]} 22. Nf3 {[%clk 0:01:59]}  c5 {[%clk 0:01:19]} 23. dxc5 {[%clk 0:02:00]}  Nxc5 {[%clk 0:01:19]} 24. Nxc5 {[%clk 0:02:00]}  Bxc5 {[%clk 0:01:20]} 25. Kg2 {[%clk 0:01:58]}  Bb6 {[%clk 0:01:14]} 26. Rxe8 {[%clk 0:01:52]}  Rxe8 {[%clk 0:01:14]} 27. Rd1 {[%clk 0:01:52]}  Rd8 {[%clk 0:01:09]} 28. h4 {[%clk 0:01:49]}  g6 {[%clk 0:01:07]} 29. Rd2 {[%clk 0:01:44]}  Qe6 {[%clk 0:00:53]} 30. a4 {[%clk 0:01:39]}  Qg4 {[%clk 0:00:28]} 31. b3 {[%clk 0:01:27]}  Qe6 {[%clk 0:00:25]} 32. h5 {[%clk 0:01:26]}  Qf6 {[%clk 0:00:21]} 33. hxg6 {[%clk 0:01:23]}  hxg6 {[%clk 0:00:22]} 34. Qb5 {[%clk 0:01:19]}  Qc6 {[%clk 0:00:22]} 35. Qxc6 {[%clk 0:01:16]}  bxc6 {[%clk 0:00:22]} 36. Ne5 {[%clk 0:01:17]}  Rd6 {[%clk 0:00:23]} 37. b4 {[%clk 0:01:13]}  Re6 {[%clk 0:00:23]} 38. Nd7 {[%clk 0:01:04]}  Re7 {[%clk 0:00:19]} 39. Nb8 {[%clk 0:00:56]}  Re6 {[%clk 0:00:18]} 40. Rc2 {[%clk 0:00:52]}  d4 {[%clk 0:00:19]} 41. Rxc6 {[%clk 0:00:48]}  Rxc6 {[%clk 0:00:16]} 42. Nxc6 {[%clk 0:00:49]}  d3 {[%clk 0:00:16]} 43. Kf3 {[%clk 0:00:45]}  d2 {[%clk 0:00:17]} 44. Ke2 {[%clk 0:00:46]}  Bxf2 {[%clk 0:00:17]} 45. g4 {[%clk 0:00:46]}  Kf7 {[%clk 0:00:15]} 46. Ne5+ {[%clk 0:00:40]}  Kf6 {[%clk 0:00:11]} 47. Nf3 {[%clk 0:00:40]}  Bb6 {[%clk 0:00:09]} 48. Kxd2 {[%clk 0:00:40]}  Ke6 {[%clk 0:00:09]} 49. Kd3 {[%clk 0:00:40]}  Kd5 {[%clk 0:00:05]} 50. Nh4 {[%clk 0:00:40]}  g5 {[%clk 0:00:04]} 51. Nf3 {[%clk 0:00:40]}  Bd8 {[%clk 0:00:03]} 52. Ne1 {[%clk 0:00:33]}  Be7 {[%clk 0:00:03]} 53. b5 {[%clk 0:00:31]}  Bb4 {[%clk 0:00:01]} 54. Nf3 {[%clk 0:00:31]}  Be7 {[%clk 0:00:01]} 55. Nd4 {[%clk 0:00:28]} 1-0


[Site "https://www.chess.com"]